Cogmind - Beta 10.2 *** ADVENTURER MODE // 2021.08.18 @ 20:10:57 Player: Jezoensis Result: Self-destructed Performance ------------- Evolutions (6) 3000 Regions Visited (7) 1400 Robots Destroyed (194) 970 Value Destroyed (7137) 7137 Prototype IDs (14) 280 Alien Tech Used (0) 0 Bonus (1983) 1983 TOTAL SCORE: 14770 Bonus ------- High Alert Combat Kills 2060 Friendly Fire -77 Cogmind --------- Core Integrity 1150/1150 Matter 268/300 Energy 170/170 System Corruption 0% Temperature Cool (0) Movement Rolling (120) Ox2 Location -4/Factory Parts ------- > --- POWER (1) -------- Micro Fission Core > --- PROPULSION (5) --- Armored Medium Treads Compact Wheel Armored Huge Wheel > --- UTILITY (11) ----- Fusion Compressor Large Storage Unit Large Storage Unit Large Storage Unit High-capacity Storage Unit Experimental Signal Interpreter Advanced Terrain Scan Processor Improved Utility Shielding Layered Light Armor Plating Hacking Suite > --- WEAPON (2) ------- KE Penetrator Proton Missile Launcher > --- INVENTORY (30) --- Armored Medium Treads Compact Wheel Compact Wheel Compact Wheel Compact Wheel Armored Huge Wheel Armored Huge Wheel Experimental Heat Sink Weapon Cycler Improved Weapon Shielding Layered Light Armor Plating Layered Light Armor Plating Layered Heavy Armor Plating System Shield Tesla Rifle Wave Gun Phase Cannon Heavy Plasma Cannon Heavy Plasma Cannon Heavy Plasma Cannon Advanced Plasma Cannon KE Penetrator KE Penetrator Advanced Assault Cannon Long-range Missile Launcher Power Sword Peak State ------------ > --- POWER ------------ Micro Fission Core > --- PROPULSION ------- Armored Medium Treads Compact Wheel Armored Huge Wheel > --- UTILITY ---------- Fusion Compressor Large Storage Unit Large Storage Unit Large Storage Unit High-capacity Storage Unit Experimental Signal Interpreter Advanced Terrain Scan Processor Layered Light Armor Plating Layered Light Armor Plating Hacking Suite > --- WEAPON ----------- KE Penetrator Tesla Bomb Launcher > --- INVENTORY -------- Armored Medium Treads Armored Medium Treads Compact Wheel Compact Wheel Compact Wheel Compact Wheel Armored Huge Wheel Armored Huge Wheel Armored Huge Wheel Experimental Heat Sink Weapon Cycler Improved Utility Shielding Improved Weapon Shielding Layered Light Armor Plating Layered Light Armor Plating System Shield Tesla Rifle Wave Gun Wave Gun Phase Cannon Heavy Plasma Cannon Heavy Plasma Cannon Heavy Plasma Cannon Advanced Plasma Cannon Advanced Assault Cannon Long-range Missile Launcher Power Sword [Rating: 76] Favorites ----------- Power Cooled Ion Engine Engine Cooled Ion Engine Power Core Light Nuclear Core Reactor Cold Fusion Reactor Propulsion Wheel Treads Light Treads Wheel Wheel Utility Large Storage Unit Device Improved Terrain Scanner Storage Large Storage Unit Processor Advanced Terrain Scan Processor Hackware Hacking Suite Protection Layered Light Armor Plating Weapon Improved Spread Laser Energy Gun Improved Spread Laser Energy Cannon Beam Cannon Ballistic Gun Gauss Rifle Ballistic Cannon Advanced Assault Cannon Launcher Tesla Bomb Launcher Slashing Weapon Power Sword Build | -11 -10 -9 -8 -7 -6 -5 -4 ------- Run | Scr Mat Mat Mat Fac Fac Fac Fac Slots Evolved 12 | . . 2 2 2 2 2 2 Power . | . . . . . . . . Propulsion 3 | . . 1 . . 1 . 1 Utility 9 | . . 1 2 2 1 2 1 Weapon . | . . . . . . . . Parts Attached 200 | 7 8 15 38 45 18 69 . Power 13 | 1 . 2 1 3 2 4 . Engine 8 | 1 . 2 1 1 2 1 . Core 4 | . . . . 2 . 2 . Reactor 1 | . . . . . . 1 . Propulsion 47 | 3 3 4 10 9 5 13 . Treads 13 | 1 . 1 4 3 . 4 . Leg . | . . . . . . . . Wheel 34 | 2 3 3 6 6 5 9 . Hover . | . . . . . . . . Flight . | . . . . . . . . Utility 63 | 1 3 3 8 20 3 25 . Device 25 | . 1 1 1 10 2 10 . Storage 7 | 1 1 1 1 2 . 1 . Processor 7 | . 1 . 2 3 . 1 . Hackware 3 | . . . 1 1 . 1 . Protection 21 | . . 1 3 4 1 12 . Artifact . | . . . . . . . . Weapon 77 | 2 2 6 19 13 8 27 . Energy Gun 31 | 2 1 2 6 9 2 9 . Energy Cannon 5 | . . 2 3 . . . . Ballistic Gun 20 | . 1 2 4 3 3 7 . Ballistic Cannon 2 | . . . . . . 2 . Launcher 18 | . . . 6 1 3 8 . Special Weapon . | . . . . . . . . Impact Weapon . | . . . . . . . . Slashing Weapon 1 | . . . . . . 1 . Piercing Weapon . | . . . . . . . . Special Melee Weapon . | . . . . . . . . Unidentified Prototypes 10 | . . 2 . 2 1 5 . Parts Lost 50 | . . 2 10 13 2 23 . Power 2 | . . . 1 1 . . . Propulsion 19 | . . 1 5 4 2 7 . Utility 15 | . . . 1 3 . 11 . Weapon 14 | . . 1 3 5 . 5 . Highest Loss Streak 7 | . . 1 7 7 1 4 . Average Slot Usage (%) 97 | . 97 97 97 97 99 94 . Engine 5 | . 14 10 9 3 5 1 . Core 1 | . . . . 3 . 1 . Treads 6 | . . 11 8 6 6 4 . Wheel 16 | . 28 21 16 15 19 12 . Device 4 | . 2 1 . 6 6 5 . Storage 19 | . 14 19 18 15 20 22 . Processor 11 | . 9 11 8 10 13 13 . Hackware 6 | . . . 9 10 6 5 . Protection 5 | . . 1 9 6 6 6 . Energy Gun 7 | . 24 5 5 9 5 4 . Ballistic Gun 5 | . 3 10 8 4 5 4 . Naked Turns . | . . . . . . . . Heaviest Build 116 | 13 42 62 67 80 90 116 . Greatest Support 44 | 26 26 26 30 36 42 44 . Greatest Overweight (x) 6 | . 3 3 3 6 4 5 . Average Overweight (x) 2 | . 1 2 2 2 2 2 . Largest Inventory Capacity 30 | 6 14 18 18 24 24 30 . Average Capacity 22 | 5 11 16 18 18 24 29 . Most Carried 30 | 6 12 18 18 20 24 30 . Average Carried 19 | 4 10 15 16 15 21 27 . Final Capacity 30 | 6 12 18 18 24 24 30 30 Final Carried 29 | 6 12 18 15 20 24 29 29 Class Distribution -------------------- 32% | Hacker-Mutant 19% | Hauler-Skirmisher 18% | Hauler-Mutant 17% | Mutant 7% | Scavenger-Skirmisher Dominant Class ---------------- Mutant | -10/Materials Mutant | -9/Materials Hacker-Mutant | -8/Materials Hacker-Mutant | -7/Factory Hauler-Skirmisher | -6/Factory Hauler-Skirmisher | -5/Factory Hauler-Skirmisher | -4/Factory Resources | -11 -10 -9 -8 -7 -6 -5 -4 ----------- Run | Scr Mat Mat Mat Fac Fac Fac Fac Matter Collected 3680 | 270 64 254 758 630 408 1296 . Remotely . | . . . . . . . . Salvage Created 7747 | 152 142 538 1626 1352 606 3331 . Parts 365 | 9 18 28 97 63 29 121 . Haulers Intercepted 5 | . . . 2 2 . 1 . Recyclers Shooed 4 | . . . 1 . 3 . . Parts Field Recycled . | . . . . . . . . Retrieved Matter . | . . . . . . . . Parts Self-Destructed . | . . . . . . . . Prevented . | . . . . . . . . Kills | -11 -10 -9 -8 -7 -6 -5 -4 ------- Run | Scr Mat Mat Mat Fac Fac Fac Fac Combat Hostiles Destroyed 146 | . 6 11 42 27 9 51 . Melee 1 | . . . . . . 1 . Guns 85 | . 6 9 18 26 4 22 . Cannons 8 | . . 2 5 . . 1 . AOE 44 | . . . 19 1 5 19 . Classes Destroyed 16 | 2 2 4 3 3 1 1 . Worker 8 | . . 1 5 1 . 1 . Builder 10 | . 2 . 5 . 2 1 . Tunneler 7 | 3 . . 2 1 1 . . Hauler 5 | . . . 2 2 . 1 . Recycler 7 | 1 . . . 1 2 3 . Operator 2 | . . . . . 1 1 . Watcher 9 | . . 1 3 1 2 2 . Swarmer 30 | . 6 . 10 2 4 8 . Saboteur 1 | . . . . . . 1 . Grunt 72 | . . 8 22 15 2 25 . Brawler 2 | . . . . 1 . 1 . Duelist 5 | . . . 2 1 1 1 . Protector 1 | . . . . 1 . . . Sentry 20 | . . 3 7 2 2 6 . Hunter 8 | . . . 1 4 . 3 . Programmer 7 | . . . . 1 . 6 . Best Kill Streak 13 | 2 4 4 13 6 5 8 . Combat Bots Only 10 | . 3 4 10 6 3 7 . Max Kills in Single Turn 4 | 1 1 2 4 1 2 4 . Gunslinging 1 | . . . 1 . . . . Exploded 4 | . . . 3 1 2 4 . Melee 1 | . . . . . . 1 . Uniques/NPCs Destroyed . | . . . . . . . . Combat | -11 -10 -9 -8 -7 -6 -5 -4 -------- Run | Scr Mat Mat Mat Fac Fac Fac Fac Damage Taken 8991 | . 77 524 1504 2150 396 4340 . Core 1086 | . 11 89 193 304 76 413 . Absorbed by Shields . | . . . . . . . . Core Remaining (%) 77 | 100 95 77 64 56 91 58 . Volleys Fired 400 | 8 13 35 89 82 39 134 . Largest 2 | 2 2 2 2 2 2 2 . Hottest 162 | 100 100 83 88 150 103 162 . Shots Fired 686 | 16 26 64 144 164 54 218 . Gun 571 | 16 26 46 99 164 45 175 . Cannon 59 | . . 18 24 . . 17 . Launcher 56 | . . . 21 . 9 26 . Special . | . . . . . . . . Kinetic 264 | . 1 29 61 58 24 91 . Thermal 304 | 16 25 18 40 83 21 101 . Explosive 33 | . . . 21 . 9 3 . Electromagnetic 85 | . . 17 22 23 . 23 . Robot Hit Streak 31 | 12 6 14 31 30 19 25 . Robot Miss Streak 5 | 1 2 3 2 4 5 3 . Penetration Max 1 | . . . . 1 1 1 . Secondary Targets 15 | . 1 . 6 5 . 3 . Max Gunslinging Chain 1 | . 1 . 1 1 . 1 . Shots Hit Robots 566 | 12 17 50 120 142 43 182 . Core Hits 483 | 5 8 21 106 134 52 157 . Critical Hits 6 | . . . . 1 . 5 . Critical Kills 5 | . . . . 1 . 4 . Critical Parts Destroyed 1 | . . . . . . 1 . Melee Attacks 1 | . . . . . . 1 . Impact . | . . . . . . . . Slashing 1 | . . . . . . 1 . Piercing . | . . . . . . . . Sneak Attacks . | . . . . . . . . Combat Hostiles . | . . . . . . . . Follow-up Attacks . | . . . . . . . . Damage Inflicted 17776 | 152 183 822 4606 3200 1538 7275 . Guns 9293 | 152 183 544 1355 3073 680 3306 . Cannons 784 | . . 278 348 . . 158 . Explosions 7696 | . . . 2903 127 858 3808 . Melee . | . . . . . . . . Ramming 3 | . . . . . . 3 . Kinetic 3557 | . . 347 748 897 345 1220 . Thermal 5735 | 152 183 278 608 1935 335 2244 . Explosive 4456 | . . . 2903 . 858 695 . Electromagnetic 4025 | . . 197 347 368 . 3113 . Impact . | . . . . . . . . Slashing . | . . . . . . . . Piercing . | . . . . . . . . Highest Corruption 8 | . . 1 . . . 8 . Average Corruption 3 | . . 1 . . . 5 . Corruption Purged . | . . . . . . . . Effects 30 | . . 2 . . . 28 . Message Errors 4 | . . . . . . 4 . Matter Fused 10 | . . . . . . 10 . Heat Flow Errors 1 | . . . . . . 1 . Energy Discharges 2 | . . 2 . . . . . Parts Rejected 1 | . . . . . . 1 . Data Loss (minor) 4 | . . . . . . 4 . Misfires 1 | . . . . . . 1 . Targeting Errors 5 | . . . . . . 5 . Weapon Failures 2 | . . . . . . 2 . Overload Shots . | . . . . . . . . Overflow Damage 359 | . . . 158 . 22 179 . Projectiles . | . . . . . . . . Explosions 359 | . . . 158 . 22 179 . Melee . | . . . . . . . . Knockbacks . | . . . . . . . . Impact . | . . . . . . . . Kinetic . | . . . . . . . . Secondary . | . . . . . . . . Self-Inflicted Damage 590 | . . . 63 38 28 461 . Shots 21 | . . . 5 1 1 14 . Rammed 2 | . . . . . . 2 . Targets Rammed 2 | . . . . . . 2 . Kicked . | . . . . . . . . Crushed . | . . . . . . . . Highest Temperature 452 | 117 234 90 297 325 452 345 . Average Temperature 80 | 53 88 28 88 89 64 86 . Received Heat Transfer 2865 | . . 195 810 801 108 951 . Effects 6 | . . . 1 . 2 3 . Energy Bleed 1 | . . . . . 1 . . Interference 3 | . . . 1 . . 2 . Matter Decay 2 | . . . . . 1 1 . Siege Activations . | . . . . . . . . Robots Corrupted 8 | . . . . . . 8 . Combat Hostiles 8 | . . . . . . 8 . Parts Fried 17 | . . . 1 . . 16 . Impact Corruptions . | . . . . . . . . Robots Melted . | . . . . . . . . Combat Hostiles . | . . . . . . . . Parts Melted 8 | . 1 1 . 2 1 3 . Heat Transferred 8284 | 444 555 592 1295 1645 285 3468 . Parts Sabotaged 1 | . . . . . . 1 . Parts Stolen . | . . . . . . . . Parts Stripped . | . . . . . . . . Power Chain Reactions 4 | . . . . 2 . 2 . Missiles Intercepted . | . . . . . . . . Alert | -11 -10 -9 -8 -7 -6 -5 -4 ------- Run | Scr Mat Mat Mat Fac Fac Fac Fac Peak Influence 1547 | 20 208 499 1311 781 580 1547 . Initial 653 | . 11 74 129 432 204 193 653 Average 489 | 7 139 317 601 531 378 600 . Maximum Alert Level 4 | . 1 2 4 3 2 4 . Low Security (%) 18 | 100 76 19 9 . . 23 . Level 1 28 | . 23 47 14 13 53 31 . Level 2 35 | . . 32 49 76 46 11 . Level 3 9 | . . . 21 9 . 12 . Level 4 7 | . . . 5 . . 20 . Level 5 . | . . . . . . . . High Security . | . . . . . . . . Max Security . | . . . . . . . . Squads Dispatched 38 | . . 2 9 13 1 13 . Investigation 11 | . . 1 4 3 . 3 . Extermination 4 | . . . . 2 . 2 . Reinforcement 15 | . . 1 3 7 1 3 . Assault 4 | . . . 1 1 . 2 . Garrison 4 | . . . 1 . . 3 . Intercept . | . . . . . . . . Construction Impeded 5 | . . . 1 1 1 2 . Haulers Reinforced 3 | . . . . 2 . 1 . Stealth | -11 -10 -9 -8 -7 -6 -5 -4 --------- Run | Scr Mat Mat Mat Fac Fac Fac Fac Distress Signals 16 | . 1 3 6 . . 6 . Communications Jammed . | . . . . . . . . Distress Signals . | . . . . . . . . Times Spotted 231 | . 8 26 56 37 15 89 . Peak Tracking Total 9 | . 4 6 9 5 6 9 . Tactical Retreats 24 | . . 3 2 3 2 14 . Traps | -11 -10 -9 -8 -7 -6 -5 -4 ------- Run | Scr Mat Mat Mat Fac Fac Fac Fac Traps Triggered 9 | . 1 3 . 3 . 2 . Indirectly . | . . . . . . . . Trap Hack Attempts . | . . . . . . . . Triggered . | . . . . . . . . Disarmed . | . . . . . . . . Reprogrammed . | . . . . . . . . Reused . | . . . . . . . . Traps Extracted . | . . . . . . . . Installed . | . . . . . . . . Triggered 1 | . . . . . . 1 . Machines | -11 -10 -9 -8 -7 -6 -5 -4 ---------- Run | Scr Mat Mat Mat Fac Fac Fac Fac Machines Disabled 35 | . . 1 3 1 2 28 . Max in Single Turn 8 | . . 1 2 1 1 8 . Machines Sabotaged . | . . . . . . . . Garrisons Compromised . | . . . . . . . . Overloaded Fab Kills . | . . . . . . . . Fab Network Shutdowns . | . . . . . . . . Hacking | -11 -10 -9 -8 -7 -6 -5 -4 --------- Run | Scr Mat Mat Mat Fac Fac Fac Fac Machines Accessed 36 | . 4 4 4 7 3 14 . Terminals 29 | . 4 4 4 6 2 9 . Fabricators 4 | . . . . . . 4 . Repair Stations 1 | . . . . . . 1 . Recycling Units . | . . . . . . . . Scanalyzers 1 | . . . . 1 . . . Garrison Access 1 | . . . . . 1 . . Total Hacks 107 | . 15 17 12 17 8 38 . Successful 62 | . 7 11 5 12 4 23 . Failed 44 | . 7 6 7 5 4 15 . Catastrophic 7 | . . . 1 2 1 3 . Database Lockouts 1 | . 1 . . . . . . Manual 72 | . 15 15 10 7 7 18 . Terminals 90 | . 15 17 12 15 6 25 . Fabricators 10 | . . . . . . 10 . Repair Stations 3 | . . . . . . 3 . Recycling Units . | . . . . . . . . Scanalyzers 2 | . . . . 2 . . . Garrison Access 2 | . . . . . 2 . . Terminal Hacks 28 | . 6 6 2 7 1 6 . Record 2 | . . 1 . 1 . . . Part Schematic 4 | . 2 . . . . 2 . Robot Analysis 3 | . 3 . . . . . . Prototype ID Bank 2 | . . 2 . . . . . Level Access Points 4 | . . . 1 1 1 1 . Branch Access Points 1 | . . 1 . . . . . Machine Index 1 | . . . . 1 . . . Terminal Index 4 | . 1 1 1 . . 1 . Alert Level 1 | . . . . 1 . . . Unreport Threat 2 | . . . . 2 . . . Locate Traps 2 | . . . . . . 2 . Recall Investigation 1 | . . . . 1 . . . Zone Layout 1 | . . 1 . . . . . Fabricator Hacks 7 | . . . . . . 7 . Network Status 1 | . . . . . . 1 . Load Schematic 4 | . . . . . . 4 . Build 2 | . . . . . . 2 . Repair Station Hacks 2 | . . . . . . 2 . Scan Component 1 | . . . . . . 1 . Repair 1 | . . . . . . 1 . Recycling Unit Hacks . | . . . . . . . . Scanalyzer 2 | . . . . 2 . . . Insert Component 1 | . . . . 1 . . . Analyze 1 | . . . . 1 . . . Garrison Access Hacks . | . . . . . . . . Unauthorized Hacks 23 | . 1 5 3 3 3 8 . Terminals 20 | . 1 5 3 3 1 7 . Track 2 | . . 1 . . . 1 . Assimilate 3 | . . . . . . 3 . Botnet 11 | . 1 3 2 2 1 2 . Operators 4 | . . 1 1 1 . 1 . Fabricators 1 | . . . . . . 1 . Haulers 1 | . . . . . . 1 . Repair Stations . | . . . . . . . . Recycling Units . | . . . . . . . . Scanalyzers . | . . . . . . . . Garrison Access 2 | . . . . . 2 . . Decoy 1 | . . . . . 1 . . Watchers 1 | . . . . . 1 . . Data Cores Recovered . | . . . . . . . . Used . | . . . . . . . . Hacking Detections 34 | . 4 4 4 7 2 13 . Full Trace Events 10 | . 1 1 4 1 . 3 . Feedback Events 1 | . . 1 . . . . . Corruption 1 | . . 1 . . . . . Feedback Blocked . | . . . . . . . . Robot Schematics Acquired . | . . . . . . . . Robots Built . | . . . . . . . . Matter . | . . . . . . . . Time . | . . . . . . . . Total Robot Build Rating . | . . . . . . . . Part Schematics Acquired 5 | . 2 . . 1 . 2 . Parts Built 4 | . . . . . . 4 . Matter 336 | . . . . . . 336 . Time 84 | . . . . . . 84 . Total Part Build Rating 16 | . . . . . . 16 . Parts Repaired 1 | . . . . . . 1 . Time 19 | . . . . . . 19 . Parts Recycled . | . . . . . . . . Recycled Matter . | . . . . . . . . Retrieved Matter . | . . . . . . . . Retrieved Components . | . . . . . . . . Parts Scanalyzed 1 | . . . . 1 . . . Part Schematics Acquired 1 | . . . . 1 . . . Parts Damaged . | . . . . . . . . Bothacking | -11 -10 -9 -8 -7 -6 -5 -4 ------------ Run | Scr Mat Mat Mat Fac Fac Fac Fac Used RIF Installer . | . . . . . . . . Robots Hacked . | . . . . . . . . Non-combat . | . . . . . . . . Combat . | . . . . . . . . Robot Hacks Applied . | . . . . . . . . Relay Couplers Released . | . . . . . . . . Robots Rewired . | . . . . . . . . Allies Hacked . | . . . . . . . . Hacks Repelled . | . . . . . . . . Allies | -11 -10 -9 -8 -7 -6 -5 -4 -------- Run | Scr Mat Mat Mat Fac Fac Fac Fac Total Allies 3 | . . . . . . 3 . Largest Group 2 | . . . . . . 2 . Highest-Rated Group 52 | . . . . . . 52 . Highest-Rated Ally 26 | . . . . . . 26 . Total Orders . | . . . . . . . . Ally Attacks . | . . . . . . . . Total Damage . | . . . . . . . . Kills . | . . . . . . . . Allies Corrupted . | . . . . . . . . Allies Melted . | . . . . . . . . Intel | -11 -10 -9 -8 -7 -6 -5 -4 ------- Run | Scr Mat Mat Mat Fac Fac Fac Fac Robot Analysis Total 3 | . 3 . . . . . . Derelict Logs Recovered . | . . . . . . . . Drone Launches . | . . . . . . . . Drone Recoveries . | . . . . . . . . Exploration | -11 -10 -9 -8 -7 -6 -5 -4 ------------- Run | Scr Mat Mat Mat Fac Fac Fac Fac Turns Passed 5286 | 95 342 513 800 1050 704 1782 . Spaces Moved 3367 | 62 282 332 453 641 511 1086 . Core 13 | 13 . . . . . . . Treads 21 | . . 2 3 3 5 8 . Legs . | . . . . . . . . Wheels 3333 | 49 282 330 450 638 506 1078 . Hover . | . . . . . . . . Flight . | . . . . . . . . Fastest Speed 50 | 50 90 100 100 96 106 106 . Average Speed 110 | 80 99 107 110 110 111 114 . Slowest Speed 270 | 90 110 220 220 230 250 270 . Overloaded Moves . | . . . . . . . . Propulsion Burnouts . | . . . . . . . . Robots Hopped . | . . . . . . . . Cave-ins Triggered . | . . . . . . . . Exploration Rate (%) 31 | 4 55 33 48 23 20 34 . Regions Visited 7 Branch Regions . Pre-discovered Areas . | . . . . . . . . Known Exits Taken 6 | . 1 1 1 1 1 1 . Unknown Exits Taken 1 | 1 . . . . . . . Scrap Searched . | . . . . . . . . Spaces Dug 7 | . . . . . . 7 . Terrain Destroyed 359 | . . . 169 4 81 105 . Melee 1 | . . . . . . 1 . Projectile 13 | . . . . . 3 10 . AOE 345 | . . . 169 4 78 94 . Terrain Rammed . | . . . . . . . . Walls Destroyed . | . . . . . . . . Machines Disabled . | . . . . . . . . Actions | -11 -10 -9 -8 -7 -6 -5 -4 --------- Run | Scr Mat Mat Mat Fac Fac Fac Fac Total 4259 | 90 316 428 617 821 591 1396 . Wait 54 | . 2 11 5 7 3 26 . Move 3360 | 61 281 331 452 640 510 1085 . Hop . | . . . . . . . . Pick Up 144 | 11 7 18 17 29 12 50 . Fast Attach 28 | 4 5 5 2 5 1 6 . Attach 87 | 2 1 8 20 19 6 31 . Detach 16 | . 1 4 3 5 1 2 . Swap 85 | 1 2 2 16 21 11 32 . Drop 82 | 3 4 14 13 13 8 27 . Fire 400 | 8 13 35 89 82 39 134 . Melee 1 | . . . . . . 1 . Ram . | . . . . . . . . Kick . | . . . . . . . . Crush 2 | . . . . . . 2 . Escape Stasis . | . . . . . . . . Rewire . | . . . . . . . . Trap . | . . . . . . . . Miscellaneous . | . . . . . . . . Route ------- -11/Scrapyard -10/Materials (discovered 2 exits: *Mat x2) -9/Materials (discovered 4 exits: *Mat / *Min / Sto x2) -8/Materials (discovered 3 exits: *Fac x3) -7/Factory (discovered 4 exits: *Fac x4) -6/Factory (discovered 6 exits: *Fac x4 / [*Low x2]) -5/Factory (discovered 4 exits: *Fac x4) -4/Factory History --------- Turn | Location | Event 12 | -11/Scrapyard | Discovered new exit (range 15) 96 | -11/Scrapyard | Entered Materials 279 | -10/Materials | Discovered new exit (range 6) 287 | -10/Materials | Identified exit to Materials 313 | -10/Materials | Build established: Mutant 353 | -10/Materials | Discovered exit to Materials (range 11) 404 | -10/Materials | Central database locked down 438 | -10/Materials | Entered another Materials area 438 | -9/Materials | Evolved 2 slots: Propulsion x1, Utility x1 723 | -9/Materials | Identified exit to Mines 723 | -9/Materials | Identified exit to Storage 923 | -9/Materials | Discovered new exit (range 16) 950 | -9/Materials | Identified exit to Materials 951 | -9/Materials | Entered another Materials area 951 | -8/Materials | Evolved 2 slots: Utility x2 986 | -8/Materials | Garrison activated, responded to threat 1194 | -8/Materials | Lost 7 parts (1p3n1u2w) 1196 | -8/Materials | Destroyed 10 combat bots 1249 | -8/Materials | Build established: Hacker-Mutant 1330 | -8/Materials | Discovered new exit (range 7) 1697 | -8/Materials | Identified exit to Factory 1747 | -8/Materials | Destroyed 9 combat bots 1751 | -8/Materials | First assault squad dispatched 1751 | -8/Materials | Entered Factory 1751 | -7/Factory | Evolved 2 slots: Utility x2 1755 | -7/Factory | Lost 3 parts (2n1w) 2151 | -7/Factory | First assault squad dispatched 2161 | -7/Factory | Identified exit to Factory 2227 | -7/Factory | Lost 3 parts (1u2w) 2375 | -7/Factory | Lost 7 parts (1p3n1u2w) 2801 | -7/Factory | Entered another Factory area 2801 | -6/Factory | Evolved 2 slots: Propulsion x1, Utility x1 3025 | -6/Factory | Identified exit to Factory 3176 | -6/Factory | Found Hvy. Insulated Plating 3184 | -6/Factory | Discovered new exit (range 8) 3286 | -6/Factory | Discovered new exit (range 16) 3505 | -6/Factory | Entered another Factory area 3505 | -5/Factory | Evolved 2 slots: Utility x2 3575 | -5/Factory | Found Prototype Processor 3576 | -5/Factory | Identified Exp. Signal Interpreter 3833 | -5/Factory | Lost 4 parts (2n1u1w) 3873 | -5/Factory | Found Prototype Launcher 3880 | -5/Factory | Repaired Arm. Treads 3918 | -5/Factory | Identified Tesla Bomb Launcher 4002 | -5/Factory | Build established: Hauler-Skirmisher 4035 | -5/Factory | Fabricated Arm. Huge Wheel (x2) 4626 | -5/Factory | Lost 4 parts (2u2w) 4705 | -5/Factory | First assault squad dispatched 4758 | -5/Factory | Spotted B-75 Beast 4911 | -5/Factory | Build established: Hauler-Mutant 5023 | -5/Factory | Garrison activated, responded to threat 5037 | -5/Factory | Fabricated Arm. Huge Wheel (x2) 5138 | -5/Factory | Destroyed 7 combat bots 5259 | -5/Factory | Identified exit to Factory 5287 | -5/Factory | Entered another Factory area 5287 | -4/Factory | Evolved 2 slots: Propulsion x1, Utility x1 5287 | -4/Factory | Self-destructed Last Messages --------------- 05229_ K-01 Serf cleans the Recycling Unit. 05232_ R-10 Processor inserts Imp. Sensor Array into recycling unit. 05235_ R-10 Processor inserts Med. Treads into recycling unit. 05238_ R-10 Processor inserts Flexi-carbon Leg into recycling unit. 05241_ System corrupted: Matter fused (-8). 05241_ R-10 Processor inserts Flexi-carbon Leg into recycling unit. 05259_ Connecting with Terminal... >>Access(Main) Found 4 level access points to Factory: (92,24) (23,173) (187,153) (145,53) Map updated. 05261_ System corrupted: Matter fused (-9). 05284_ System corrupted: FCS attempts to trigger Proton Missile Launcher. 05284_ System corrupted: Proton Missile Launcher misfires. PARAMETERS=PROPULSION_1,UTILITY_1 LOCATION=FACTORY GOAL=ESCAPE Map ----- +----------------------------------------------------+ | ??????????????????????????????????????? | | ??????????????????????????????????????? | | ??????????????????????????????????????? | | ??????????????????????????????????????? | | ??????????????????????????????????????? | | ??????????????????????????????????????? | | ??????????????????????????????????????? | | ??????????????????????????????????????? | | ??????????????????????????????????????? | | ??????????????????????????????????????? | | ??????????????????????????????????????? | | ??????????????????????????????????????? | | ??????????????????????????????????????? | | ??????????????????????????????????????? | | ??????????????????????????????????????? | | ??????????????????????????????????????? | | ??????????????????????????????????????? | | ??????????????????????????????????????? | | ??????????????????????????????????????? | | ??????????????????????????????????????? | | ??????????????????????????????????????? | | ??????????????????????????????????????? | | ??????????????????????#######?????????? | | ??????????????????????# #?????????? | | ??????????????????????# #?????????? | | ??????????????????????# @ #?????????? | | ??????????????????????+ +?????????? | | ??????????????????????# #?????????? | | ??????????????????????# #?????????? | | ??????????????????????# #?????????? | | ??????????????????????# #?????????? | | ??????????????????????# #?????????? | | ?????????????????????? #?????????? | | ?????????????????????? #?????????? | | ????????????????????? #?????????? | | ????????????????????? #?????????? | | ????????????????????? #?????????? | | ????????????????????#####+###?????????? | | ??????????????????????????????????????? | | ??????????????????????????????????????? | | ??????????????????????????????????????? | | ??????????????????????????????????????? | | ??????????????????????????????????????? | | ??????????????????????????????????????? | | ??????????????????????????????????????? | | ??????????????????????????????????????? | | ??????????????????????????????????????? | | ??????????????????????????????????????? | | ??????????????????????????????????????? | | ??????????????????????????????????????? | +----------------------------------------------------+ Best States ------------- Heat Dissipation 66 Energy Generation 19 Energy Capacity 500 Matter Stores 300 Matter Capacity 300 Sight Range 22 Robot Scan Range 13 Terrain Scan Range 16 Terrain Scan Density 310 ECM Strength 1 Armor Coverage 600 Resistance: KI 20 Resistance: TH 20 Resistance: EX 20 Resistance: EM 50 Resistance: I 20 Resistance: S 20 Resistance: P 20 Utility Shielding 66 Evasion (%) 44 Targeting Accuracy 8 Recoil Reduction 1 Offensive Hacking 30 Item Schematics ----------------- Lrg. Storage Unit | -10/Materials | Hacked Hcp. Storage Unit | -10/Materials | Hacked Imp. Utility Shielding | -7/Factory | Scanalyzed Arm. Huge Wheel | -5/Factory | Hacked Hvy. Phase Cannon | -5/Factory | Hacked Robot Schematics ------------------ None Fabricated ------------ Arm. Huge Wheel | x2 | -5/Factory Arm. Huge Wheel | x2 | -5/Factory Alien Tech Used ----------------- None Achievements -------------- None Challenges ------------ None Game ------ Seed LaserGyrokineticRefractor Manual? 0 Play Time 02:00:54 Cumulative 141.9 hours Start 2021.08.18 @ 18:00:26 End 2021.08.18 @ 20:10:57 Sessions 2 Manual Loads 0 Difficulty Adventurer Special Mode None Game No. 57 Rogue 4 Adventurer 51 Explorer 2 Win Type - Total 4 Types 4/0/0/0/0/0/0/0/0 Lore% 8 Gallery% 58 Achievement% 34 Wizard Run 0 Options --------- ASCII 0 Keyboard 1 Movement Numpad Keybinds 0 Fullscreen 1 Font 36/TerminusFine Map View 76x50 Tactical HUD 1 Map Filters NONE Filters NONE Steam 1 RUN: fd5315d7-712a-4a3a-9ba5-b031c9def392